Workbook

Sheet English
A2: Gripping force calculation for Gripper series PZH-SF | D2: V1.0
A5: Input | B5: The workpiece to be gripped-Ø [mm] | C5: D1 | D5: 100
B6: Finger-Ø [mm](PZH-SF 350=24mm) | C6: D2 | D6: 24
B7: Length of base jaw [mm] (PZH-SF 350=116mm) | C7: s | D7: 116
B8: Distance from the center of the gripper to the pivot point of the base jaw [mm] (PZH-SF 350=141mm) | C8: a | D8: 141
B9: Operating pressure [bar] | C9: p | D9: 6
B10: Gripping torque [Nm] (PZH-SF 350=180Nm) | C10: Mab | D10: 180
A13: errechnet | K13: Innengreifen
B14: Werkstückradius | C14: R1 | D14: =D5/2 -> 50 | L14: cos alpha | M14: =(D8*D8+D14*D14-D7*D7)/(2*D8*D14) -> 0.6329787234
B15: Fingerradius | C15: R2 | D15: =D6/2 -> 12 | K15: Länge Berührpunkt bis Drehpunkt | L15: l | M15: =SQRT(D8*D8+D16*D16-2*D8*D16*M14) -> 112.5077775
B16: Radius Gesamt | C16: R | D16: =D15+D14 -> 62 | L16: alpha | M16: =ACOS(M14) -> 0.8854015002 | N16: =DEGREES(M16) -> 50.72976914
L17: betta1 | M17: =ASIN(SIN(M16)*D8/M15) -> 1.326157957 | N17: =DEGREES(M17) -> 75.98325392
A18: Aussengreifen | L18: betta2 | N18: =90-N17 -> 14.01674608
B19: cos alpha | C19: =(D8*D8+D16*D16-D7*D7)/(2*D8*D16) -> 0.5873369938
A20: Länge Berührpunkt bis Drehpunkt | B20: l | C20: =SQRT(D8*D8+D14*D14-2*D8*D14*C19) -> 118.7415192
B21: alpha | C21: =ACOS(C19) -> 0.9430317626 | D21: =DEGREES(C21) -> 54.03173994
B22: betta1 | C22: =ASIN(SIN(C21)*D8/C20) -> 1.290799599 | D22: =DEGREES(C22) -> 73.95736923
B23: betta2 | D23: =90-D22 -> 16.04263077
A26: Output
B27: External gripping
B28: existing gripping force [N] | C28: =COS(D23*PI()/180)*((D10/6*(D9))/(C20/1000)) -> 1456.863133
B30: Internal gripping
B31: existing gripping force [N] | C31: =COS(N18*PI()/180)*((D10/6*D9)/(M15/1000)) -> 1552.252651

Sheet Deutsch
A2: Greifkraftberechnung für Greiferbaureihe PZH-SF | D2: V1.0
A5: Eingabe | B5: Zu greifendes Werkstück-Ø [mm] | C5: D1 | D5: 100
B6: Finger-Ø [mm](PZH-SF 350=24mm) | C6: D2 | D6: 24
B7: Grundbackenlänge [mm] (PZH-SF 350=116mm) | C7: s | D7: 116
B8: Abstand Greifer Mitte bis Drehpunkt Grundbacke [mm] (PZH-SF 350=141mm) | C8: a | D8: 141
B9: Betriebsdruck [bar] | C9: p | D9: 6
B10: Greifmoment [Nm] (PZH-SF 350=180Nm) | C10: Mab | D10: 180
A13: errechnet | K13: Innengreifen
B14: Werkstückradius | C14: R1 | D14: =D5/2 -> 50 | L14: cos alpha | M14: =(D8*D8+D14*D14-D7*D7)/(2*D8*D14) -> 0.6329787234
B15: Fingerradius | C15: R2 | D15: =D6/2 -> 12 | K15: Länge Berührpunkt bis Drehpunkt | L15: l | M15: =SQRT(D8*D8+D16*D16-2*D8*D16*M14) -> 112.5077775
B16: Radius Gesamt | C16: R | D16: =D15+D14 -> 62 | L16: alpha | M16: =ACOS(M14) -> 0.8854015002 | N16: =DEGREES(M16) -> 50.72976914
L17: betta1 | M17: =ASIN(SIN(M16)*D8/M15) -> 1.326157957 | N17: =DEGREES(M17) -> 75.98325392
A18: Aussengreifen | L18: betta2 | N18: =90-N17 -> 14.01674608
B19: cos alpha | C19: =(D8*D8+D16*D16-D7*D7)/(2*D8*D16) -> 0.5873369938
A20: Länge Berührpunkt bis Drehpunkt | B20: l | C20: =SQRT(D8*D8+D14*D14-2*D8*D14*C19) -> 118.7415192
B21: alpha | C21: =ACOS(C19) -> 0.9430317626 | D21: =DEGREES(C21) -> 54.03173994
B22: betta1 | C22: =ASIN(SIN(C21)*D8/C20) -> 1.290799599 | D22: =DEGREES(C22) -> 73.95736923
B23: betta2 | D23: =90-D22 -> 16.04263077
A26: Ausgabe
B27: Aussengreifen
B28: vorhandene Greifkraft [N] | C28: =COS(D23*PI()/180)*((D10/6*(D9))/(C20/1000)) -> 1456.863133
B30: Innengreifen
B31: vorhandene Greifkraft [N] | C31: =COS(N18*PI()/180)*((D10/6*D9)/(M15/1000)) -> 1552.252651
